[Event "NJSK 2026 Jeugd B"]
[Site "Helmond, Netherlands"]
[Date "2026.05.01"]
[Round "12.2"]
[White "Aravindhan, Achyuth"]
[Black "Groenewoud, Joel"]
[Result "1-0"]
[TimeControl "90min/40moves + 30min + 30sec/move"]
[WhiteTitle "-"]
[BlackTitle "-"]
[WhiteFideId "1084216"]
[BlackFideId "1087746"]
[WhiteElo "2277"]
[BlackElo "2114"]

1. e4 {[%clk 00:05:06]} a6 {[%clk 00:05:04]} {[%emt 00:00:03]} 2. d4 {[%clk
00:05:07]} {[%emt 00:00:05]} e6 {[%clk 00:05:06]} 3. Nf3 {[%clk 00:05:08]} b5
{[%clk 00:05:05]} {[%emt 00:00:07]} 4. Bd3 {[%clk 00:04:55]} {[%emt 00:00:32]}
Bb7 {[%clk 00:05:02]} {[%emt 00:00:15]} 5. O-O {[%clk 00:04:56]} {[%emt
00:00:06]} Nf6 {[%clk 00:04:57]} 6. Qe2 {[%clk 00:04:58]} Be7 {[%clk 00:04:55]}
7. a4 {[%clk 00:04:56]} b4 {[%clk 00:04:53]} 8. c4 {[%clk 00:04:56]} bxc3
{[%clk 00:04:52]} 9. Nxc3 {[%clk 00:04:56]} O-O {[%clk 00:04:50]} {[%emt
00:00:03]} 10. h3 {[%clk 00:04:09]} {[%emt 00:00:50]} c5 {[%clk 00:04:36]}
{[%emt 00:00:17]} 11. dxc5 {[%clk 00:03:56]} {[%emt 00:00:16]} Bxc5 {[%clk
00:04:24]} {[%emt 00:00:15]} 12. e5 {[%clk 00:03:51]} {[%emt 00:00:08]} Nd5
{[%clk 00:03:32]} {[%emt 00:00:55]} 13. Bxh7+ {[%clk 00:03:47]} {[%emt
00:00:06]} Kh8 {[%clk 00:03:28]} {[%emt 00:00:09]} 14. Be4 {[%clk 00:03:43]}
{[%emt 00:00:05]} Nxc3 {[%clk 00:03:00]} {[%emt 00:00:32]} 15. bxc3 {[%clk
00:03:45]} {[%emt 00:00:01]} Nc6 {[%clk 00:02:48]} {[%emt 00:00:16]} 16. Ng5
{[%clk 00:03:28]} {[%emt 00:00:18]} g6 {[%clk 00:02:43]} {[%emt 00:00:09]} 17.
Qg4 {[%clk 00:03:30]} {[%emt 00:00:01]} Kg7 {[%clk 00:02:29]} {[%emt 00:00:17]}
18. Nxf7 {[%clk 00:02:48]} {[%emt 00:00:46]} Rxf7 {[%clk 00:01:29]} {[%emt
00:01:03]} 19. Qxg6+ {[%clk 00:02:49]} {[%emt 00:00:02]} Kf8 {[%clk 00:01:31]}
{[%emt 00:00:03]} 20. Bh6+ {[%clk 00:02:47]} {[%emt 00:00:02]} Ke8 {[%clk
00:01:32]} {[%emt 00:00:02]} 21. Qg8+ {[%clk 00:02:44]} {[%emt 00:00:06]} Bf8
{[%clk 00:01:33]} {[%emt 00:00:03]} 22. Bg6 {[%clk 00:02:37]} {[%emt 00:00:10]}
Qe7 {[%clk 00:01:28]} {[%emt 00:00:09]} 23. Bxf8 {[%clk 00:02:23]} {[%emt
00:00:15]} Qxf8 {[%clk 00:01:27]} {[%emt 00:00:04]} 24. Bxf7+ {[%clk 00:02:25]}
{[%emt 00:00:02]} Ke7 {[%clk 00:01:28]} {[%emt 00:00:01]} 25. Qxf8+ {[%clk
00:02:26]} {[%emt 00:00:02]} Rxf8 {[%clk 00:01:29]} 26. Bh5 {[%clk 00:02:13]}
{[%emt 00:00:18]} Nxe5 {[%clk 00:01:30]} {[%emt 00:00:03]} 27. f4 {[%clk
00:01:56]} {[%emt 00:00:19]} Nd3 {[%clk 00:01:30]} {[%emt 00:00:03]} 28. Bf3
{[%clk 00:01:30]} {[%emt 00:00:29]} d5 {[%clk 00:01:30]} {[%emt 00:00:03]} 29.
Rab1 {[%clk 00:01:24]} {[%emt 00:00:09]} Bc6 {[%clk 00:01:25]} {[%emt
00:00:09]} 30. Rb6 {[%clk 00:00:46]} {[%emt 00:00:41]} Bxa4 {[%clk 00:01:24]}
{[%emt 00:00:03]} 31. Rxa6 {[%clk 00:00:48]} {[%emt 00:00:02]} Bb5 {[%clk
00:01:09]} {[%emt 00:00:17]} 32. Ra7+ {[%clk 00:00:49]} {[%emt 00:00:03]} Kd6
{[%clk 00:01:09]} {[%emt 00:00:03]} 33. Be2 {[%clk 00:00:49]} {[%emt 00:00:04]}
Rc8 {[%clk 00:01:04]} {[%emt 00:00:06]} 34. Rb1 {[%clk 00:00:19]} {[%emt
00:00:33]} 1-0

[Event "NJSK 2026 Jeugd B"]
[Site "Helmond, Netherlands"]
[Date "2026.05.01"]
[Round "12.3"]
[White "Zecha, Oscar"]
[Black "Kurt, Sascha"]
[Result "1-0"]
[TimeControl "90min/40moves + 30min + 30sec/move"]
[WhiteTitle "-"]
[BlackTitle "-"]
[WhiteFideId "1073826"]
[BlackFideId "1082647"]
[WhiteElo "2120"]
[BlackElo "2280"]

1. e4 {[%clk 00:05:04]} {[%emt 00:00:07]} c5 {[%clk 00:05:05]} {[%emt
00:00:01]} 2. Nf3 {[%clk 00:05:06]} d6 {[%clk 00:05:08]} 3. d4 {[%clk
00:05:09]} cxd4 {[%clk 00:05:10]} 4. Nxd4 {[%clk 00:05:11]} Nf6 {[%clk
00:05:12]} {[%emt 00:00:05]} 5. Nc3 {[%clk 00:05:12]} a6 {[%clk 00:05:14]}
{[%emt 00:00:07]} 6. f3 {[%clk 00:05:14]} e5 {[%clk 00:05:15]} 7. Nb3 {[%clk
00:05:16]} {[%emt 00:00:01]} Be6 {[%clk 00:05:16]} {[%emt 00:00:08]} 8. Be3
{[%clk 00:05:17]} {[%emt 00:00:06]} Be7 {[%clk 00:05:16]} {[%emt 00:00:03]} 9.
Qd2 {[%clk 00:05:15]} {[%emt 00:00:08]} h5 {[%clk 00:05:18]} {[%emt 00:00:03]}
10. O-O-O {[%clk 00:05:16]} {[%emt 00:00:09]} Nbd7 {[%clk 00:05:17]} {[%emt
00:00:03]} 11. Kb1 {[%clk 00:05:18]} {[%emt 00:00:02]} Qc7 {[%clk 00:05:09]}
{[%emt 00:00:04]} 12. g3 {[%clk 00:05:14]} b5 {[%clk 00:05:05]} 13. Nd5 {[%clk
00:05:03]} {[%emt 00:00:03]} Bxd5 {[%clk 00:04:33]} {[%emt 00:00:35]} 14. exd5
{[%clk 00:05:04]} {[%emt 00:00:02]} Nb6 {[%clk 00:04:31]} {[%emt 00:00:04]} 15.
Bxb6 {[%clk 00:04:19]} {[%emt 00:00:49]} Qxb6 {[%clk 00:04:33]} {[%emt
00:00:02]} 16. Na5 {[%clk 00:04:14]} {[%emt 00:00:07]} Rc8 {[%clk 00:03:32]}
{[%emt 00:01:04]} 17. c4 {[%clk 00:04:16]} {[%emt 00:00:01]} bxc4 {[%clk
00:03:24]} {[%emt 00:00:12]} 18. Nxc4 {[%clk 00:04:16]} Qa7 {[%clk 00:03:08]}
{[%emt 00:00:20]} 19. Na5 {[%clk 00:04:13]} {[%emt 00:00:06]} O-O {[%clk
00:02:59]} {[%emt 00:00:12]} 20. Nc6 {[%clk 00:03:58]} {[%emt 00:00:18]} Rxc6
{[%clk 00:02:24]} {[%emt 00:00:38]} 21. dxc6 {[%clk 00:04:00]} d5 {[%clk
00:02:27]} 22. Qa5 {[%clk 00:02:32]} {[%emt 00:01:31]} Ra8 {[%clk 00:01:34]}
{[%emt 00:00:58]} 23. Rc1 {[%clk 00:02:10]} {[%emt 00:00:23]} Bd6 {[%clk
00:01:11]} {[%emt 00:00:25]} 24. c7 {[%clk 00:01:31]} {[%emt 00:00:42]} Rc8
{[%clk 00:00:47]} {[%emt 00:00:28]} 25. Qxa6 {[%clk 00:01:28]} {[%emt
00:00:05]} Qxa6 {[%clk 00:00:43]} {[%emt 00:00:07]} 26. Bxa6 {[%clk 00:01:30]}
Rxc7 {[%clk 00:00:41]} {[%emt 00:00:06]} 27. Rxc7 {[%clk 00:01:31]} Bxc7 {[%clk
00:00:43]} 28. Rc1 {[%clk 00:01:17]} {[%emt 00:00:17]} Bb6 {[%clk 00:00:42]}
{[%emt 00:00:04]} 29. b4 {[%clk 00:01:00]} {[%emt 00:00:22]} e4 {[%clk
00:00:40]} {[%emt 00:00:06]} 30. fxe4 {[%clk 00:00:58]} {[%emt 00:00:03]} dxe4
{[%clk 00:00:40]} {[%emt 00:00:03]} 31. a4 {[%clk 00:00:46]} {[%emt 00:00:15]}
Ng4 {[%clk 00:00:38]} {[%emt 00:00:05]} 32. a5 {[%clk 00:00:38]} {[%emt
00:00:11]} Bd4 {[%clk 00:00:30]} {[%emt 00:00:12]} 33. b5 {[%clk 00:00:23]}
{[%emt 00:00:18]} Nxh2 {[%clk 00:00:22]} {[%emt 00:00:10]} 34. b6 {[%clk
00:00:25]} {[%emt 00:00:01]} Be5 {[%clk 00:00:13]} {[%emt 00:00:12]} 35. Be2
{[%clk 00:00:10]} {[%emt 00:00:18]} Bxg3 {[%clk 00:00:04]} {[%emt 00:00:12]} 36.
a6 {[%clk 00:00:10]} {[%emt 00:00:03]} Nf3 {[%clk 00:00:04]} {[%emt 00:00:03]}
37. Bxf3 {[%clk 00:00:08]} {[%emt 00:00:05]} exf3 {[%clk 00:00:07]} 38. a7
{[%clk 00:00:10]} f2 {[%clk 00:00:06]} {[%emt 00:00:03]} 39. a8=Q+ {[%clk
00:00:11]} {[%emt 00:00:02]} Kh7 {[%clk 00:00:08]} {[%emt 00:00:01]} 40. Qe4+
{[%clk 00:00:12]} {[%emt 00:00:02]} g6 {[%clk 00:00:07]} {[%emt 00:00:05]} 41.
b7 {[%clk 00:00:10]} {[%emt 00:00:05]} h4 {[%clk 00:00:05]} {[%emt 00:00:05]}
42. Qf3 {[%clk 00:00:11]} {[%emt 00:00:02]} Kg7 {[%clk 00:00:06]} {[%emt
00:00:02]} 43. Rf1 {[%clk 00:00:05]} {[%emt 00:00:08]} g5 {[%clk 00:00:04]}
{[%emt 00:00:06]} 44. Rxf2 {[%clk 00:00:06]} {[%emt 00:00:03]} Bxf2 {[%clk
00:00:06]} 45. Qxf2 {[%clk 00:00:07]} f6 {[%clk 00:00:07]} {[%emt 00:00:02]} 46.
b8=Q {[%clk 00:00:08]} {[%emt 00:00:03]} Kg6 {[%clk 00:00:09]} 47. Qg8+ {[%clk
00:00:08]} {[%emt 00:00:03]} Kh5 {[%clk 00:00:09]} {[%emt 00:00:02]} 48. Qf3+
{[%clk 00:00:10]} {[%emt 00:00:02]} Kh6 {[%clk 00:00:09]} {[%emt 00:00:02]} 49.
Qxf6+ {[%clk 00:00:08]} {[%emt 00:00:09]} 1-0

[ePGN "0.1;DGT LiveChess/2.2.10"]

[Event "NJSK 2026 Meisjes B"]
[Site "Helmond, Netherlands"]
[Date "2026.04.25"]
[Round "1.4"]
[White "Hardeman, Imara"]
[Black "Jorritsma, Eli Alia"]
[Result "1/2-1/2"]
[TimeControl "90min/40moves + 30min + 30sec/move"]
[WhiteTitle "-"]
[BlackTitle "-"]
[WhiteFideId "40100596"]
[BlackFideId "1080849"]
[WhiteElo "1718"]
[BlackElo "1861"]

1. d4 {[%clk 01:30:58]} {[%emt 00:00:03]} f5 {[%clk 01:30:50]} {[%emt
00:00:10]} 2. Bf4 {[%clk 01:31:21]} {[%emt 00:00:06]} Nf6 {[%clk 01:31:09]}
{[%emt 00:00:11]} 3. e3 {[%clk 01:31:41]} {[%emt 00:00:11]} e6 {[%clk
01:31:24]} {[%emt 00:00:16]} 4. Nf3 {[%clk 01:31:35]} {[%emt 00:00:35]} b6
{[%clk 01:31:29]} {[%emt 00:00:25]} 5. Bd3 {[%clk 01:31:09]} {[%emt 00:00:56]}
Bb7 {[%clk 01:31:31]} {[%emt 00:00:28]} 6. Nbd2 {[%clk 01:30:16]} {[%emt
00:01:23]} Bd6 {[%clk 01:30:55]} {[%emt 00:01:06]} 7. Ne5 {[%clk 01:25:48]}
{[%emt 00:04:58]} O-O {[%clk 01:28:02]} {[%emt 00:03:22]} 8. O-O {[%clk
01:23:15]} {[%emt 00:03:04]} Nc6 {[%clk 01:24:18]} {[%emt 00:04:14]} 9. Nxc6
{[%clk 01:18:05]} {[%emt 00:05:40]} Bxc6 {[%clk 01:24:21]} {[%emt 00:00:28]} 10.
Bxd6 {[%clk 01:16:26]} {[%emt 00:02:09]} cxd6 {[%clk 01:24:40]} {[%emt
00:00:10]} 11. f3 {[%clk 01:14:53]} {[%emt 00:02:03]} Nd5 {[%clk 01:14:13]}
{[%emt 00:10:57]} 12. Re1 {[%clk 01:12:02]} {[%emt 00:03:21]} f4 {[%clk
01:10:24]} {[%emt 00:04:19]} 13. Nf1 {[%clk 01:00:47]} {[%emt 00:11:45]} fxe3
{[%clk 00:59:59]} {[%emt 00:10:55]} 14. Nxe3 {[%clk 00:52:29]} {[%emt
00:08:48]} Nxe3 {[%clk 00:58:12]} {[%emt 00:02:17]} 15. Rxe3 {[%clk 00:52:45]}
{[%emt 00:00:15]} Qg5 {[%clk 00:57:26]} {[%emt 00:01:15]} 16. Qe2 {[%clk
00:52:55]} {[%emt 00:00:20]} Rf6 {[%clk 00:52:42]} {[%emt 00:05:13]} 17. Be4
{[%clk 00:51:06]} {[%emt 00:02:20]} Bb5 {[%clk 00:45:57]} {[%emt 00:07:16]} 18.
Bd3 {[%clk 00:50:34]} {[%emt 00:01:00]} Bc6 {[%clk 00:39:50]} {[%emt 00:06:38]}
19. Be4 {[%clk 00:49:47]} {[%emt 00:01:17]} d5 {[%clk 00:39:39]} {[%emt
00:00:41]} 20. Bd3 {[%clk 00:50:11]} {[%emt 00:00:06]} Rh6 {[%clk 00:39:11]}
{[%emt 00:00:58]} 21. c3 {[%clk 00:44:52]} {[%emt 00:05:49]} Rf8 {[%clk
00:37:24]} {[%emt 00:02:16]} 22. Re5 {[%clk 00:41:30]} {[%emt 00:03:53]} Qf4
{[%clk 00:35:45]} {[%emt 00:02:07]} 23. h3 {[%clk 00:34:41]} {[%emt 00:07:21]}
Qg3 {[%clk 00:34:12]} {[%emt 00:02:02]} 24. Qf2 {[%clk 00:30:40]} {[%emt
00:04:32]} Qf4 {[%clk 00:32:08]} {[%emt 00:02:31]} 25. Qe3 {[%clk 00:28:40]}
{[%emt 00:02:33]} Qf7 {[%clk 00:28:49]} {[%emt 00:03:48]} 26. Rg5 {[%clk
00:26:37]} {[%emt 00:02:35]} d6 {[%clk 00:23:52]} {[%emt 00:05:27]} 27. Re1
{[%clk 00:22:47]} {[%emt 00:04:19]} Bd7 {[%clk 00:23:50]} {[%emt 00:00:32]} 28.
Rg3 {[%clk 00:21:36]} {[%emt 00:01:39]} Qf6 {[%clk 00:22:45]} {[%emt 00:01:37]}
29. Qg5 {[%clk 00:21:12]} {[%emt 00:00:55]} Qxg5 {[%clk 00:21:18]} {[%emt
00:01:57]} 30. Rxg5 {[%clk 00:21:34]} {[%emt 00:00:07]} Rhf6 {[%clk 00:19:41]}
{[%emt 00:02:06]} 31. Rg3 {[%clk 00:15:38]} {[%emt 00:06:27]} Rc8 {[%clk
00:17:28]} {[%emt 00:02:43]} 32. Ba6 {[%clk 00:15:34]} {[%emt 00:00:35]} Rc7
{[%clk 00:17:21]} {[%emt 00:00:35]} 33. Bd3 {[%clk 00:15:21]} {[%emt 00:00:44]}
a5 {[%emt 00:05:39]} 34. Rc1 {[%clk 00:11:43]} b5 {[%clk 00:15:53]} {[%emt
00:00:57]} 35. a3 {[%clk 00:11:45]} {[%emt 00:00:28]} Rf8 {[%clk 00:15:16]}
{[%emt 00:01:04]} 36. Ra1 {[%clk 00:10:32]} {[%emt 00:01:45]} Rb8 {[%clk
00:13:59]} {[%emt 00:01:45]} 37. Rg5 {[%clk 00:08:08]} {[%emt 00:02:56]} Be8
{[%clk 00:10:16]} {[%emt 00:04:10]} 38. Re1 {[%clk 00:06:54]} {[%emt 00:01:47]}
Bf7 {[%clk 00:10:01]} {[%emt 00:00:44]} 39. f4 {[%clk 00:04:39]} {[%emt
00:02:47]} b4 {[%clk 00:06:22]} {[%emt 00:04:08]} 40. axb4 {[%clk 00:05:05]}
{[%emt 00:00:05]} axb4 {[%clk 00:06:48]} {[%emt 00:00:05]} 41. f5 {[%clk
00:02:37]} {[%emt 00:02:57]} bxc3 {[%clk 00:00:31]} {[%emt 00:06:47]} 42. bxc3
{[%clk 00:02:31]} {[%emt 00:00:37]} exf5 {[%clk 00:29:22]} {[%emt 00:01:42]} 43.
Bxf5 {[%clk 00:32:32]} {[%emt 00:00:24]} h6 {[%clk 00:25:43]} {[%emt 00:04:09]}
44. Rg3 {[%clk 00:32:26]} {[%emt 00:00:36]} Rb3 {[%clk 00:25:09]} {[%emt
00:01:04]} 45. Ree3 {[%clk 00:31:08]} {[%emt 00:01:48]} h5 {[%clk 00:24:10]}
{[%emt 00:01:29]} 46. h4 {[%clk 00:30:23]} {[%emt 00:01:14]} Kf8 {[%clk
00:23:52]} {[%emt 00:00:48]} 47. Rgf3 {[%clk 00:29:33]} {[%emt 00:01:20]} Re7
{[%clk 00:22:47]} {[%emt 00:01:35]} 48. Be6 {[%clk 00:26:21]} {[%emt 00:03:44]}
Rb5 {[%clk 00:22:29]} {[%emt 00:00:46]} 49. Rxf7+ {[%clk 00:24:30]} {[%emt
00:02:23]} Rxf7 {[%clk 00:22:49]} {[%emt 00:00:09]} 50. Bxf7 {[%clk 00:24:57]}
{[%emt 00:00:04]} Kxf7 {[%clk 00:23:13]} {[%emt 00:00:05]} 51. Kf2 {[%clk
00:25:16]} {[%emt 00:00:12]} g6 {[%clk 00:22:40]} {[%emt 00:01:03]} 52. Kf3
{[%clk 00:24:27]} {[%emt 00:01:18]} Rb3 {[%clk 00:21:54]} {[%emt 00:01:16]} 53.
Kg3 {[%clk 00:24:16]} {[%emt 00:00:41]} Kf6 {[%clk 00:21:48]} {[%emt 00:00:34]}
54. Kf4 {[%clk 00:23:46]} {[%emt 00:01:03]} Rb2 {[%clk 00:21:11]} {[%emt
00:01:05]} 55. Kg3 {[%clk 00:23:01]} {[%emt 00:01:16]} Rc2 {[%clk 00:20:52]}
{[%emt 00:00:48]} 56. Kf3 {[%clk 00:22:00]} {[%emt 00:01:32]} Rc1 {[%clk
00:20:34]} {[%emt 00:00:48]} 57. Kg3 {[%clk 00:20:39]} {[%emt 00:01:51]} Kf5
{[%clk 00:19:31]} {[%emt 00:01:32]} 58. Kf3 {[%clk 00:18:23]} {[%emt 00:02:47]}
Kf6 {[%clk 00:18:56]} {[%emt 00:01:04]} 59. Kg3 {[%clk 00:17:01]} {[%emt
00:01:53]} Kf5 {[%clk 00:17:42]} {[%emt 00:01:43]} 60. Kf3 {[%clk 00:17:12]}
{[%emt 00:00:21]} 1/2-1/2

[Event "NJSK 2026 Meisjes B"]
[Site "Helmond, Netherlands"]
[Date "2026.04.26"]
[Round "2.4"]
[White "Koorevaar, Sarah-Joy"]
[Black "Regterschot, Frederieke"]
[Result "1-0"]
[TimeControl "90min/40moves + 30min + 30sec/move"]
[WhiteTitle "-"]
[BlackTitle "-"]
[WhiteFideId "1091174"]
[BlackFideId "1083961"]
[WhiteElo "1768"]
[BlackElo "1792"]

1. d4 {[%clk 01:30:59]} {[%emt 00:00:03]} d5 {[%clk 01:30:54]} {[%emt
00:00:04]} 2. Nf3 {[%clk 01:31:25]} {[%emt 00:00:04]} Nf6 {[%clk 01:31:19]}
{[%emt 00:00:06]} 3. g3 {[%clk 01:31:51]} {[%emt 00:00:04]} Bf5 {[%clk
01:31:39]} {[%emt 00:00:09]} 4. Bg2 {[%clk 01:32:15]} {[%emt 00:00:07]} e6
{[%clk 01:31:53]} {[%emt 00:00:16]} 5. O-O {[%clk 01:32:39]} {[%emt 00:00:06]}
h6 {[%clk 01:32:12]} {[%emt 00:00:11]} 6. c4 {[%clk 01:33:04]} {[%emt
00:00:04]} c6 {[%clk 01:32:31]} {[%emt 00:00:12]} 7. Nc3 {[%clk 01:33:18]}
{[%emt 00:00:15]} Bd6 {[%clk 01:32:26]} {[%emt 00:00:36]} 8. Qb3 {[%clk
01:33:16]} {[%emt 00:00:32]} Qb6 {[%clk 01:32:17]} {[%emt 00:00:42]} 9. c5
{[%clk 01:33:21]} {[%emt 00:00:21]} Qxb3 {[%clk 01:32:41]} {[%emt 00:00:07]} 10.
axb3 {[%clk 01:33:50]} {[%emt 00:00:01]} Bc7 {[%clk 01:33:01]} {[%emt
00:00:09]} 11. b4 {[%clk 01:32:46]} {[%emt 00:01:35]} Na6 {[%clk 01:30:19]}
{[%emt 00:03:12]} 12. b5 {[%clk 01:32:15]} {[%emt 00:00:59]} cxb5 {[%clk
01:30:47]} {[%emt 00:00:03]} 13. Nxb5 {[%clk 01:32:38]} {[%emt 00:00:07]} O-O
{[%clk 01:30:58]} {[%emt 00:00:19]} 14. Rxa6 {[%clk 01:21:14]} {[%emt
00:11:54]} bxa6 {[%clk 01:31:26]} {[%emt 00:00:02]} 15. Nxc7 {[%clk 01:21:43]}
Rab8 {[%clk 01:31:15]} {[%emt 00:00:42]} 16. Nxa6 {[%clk 01:20:54]} {[%emt
00:01:18]} Rb5 {[%clk 01:31:33]} {[%emt 00:00:12]} 17. Ne5 {[%clk 01:18:45]}
{[%emt 00:02:38]} Rc8 {[%clk 01:29:21]} {[%emt 00:02:41]} 18. Rd1 {[%clk
01:07:04]} {[%emt 00:12:12]} Ne8 {[%clk 01:27:38]} {[%emt 00:02:13]} 19. Bf1
{[%clk 01:05:39]} {[%emt 00:01:55]} Ra5 {[%clk 01:20:37]} {[%emt 00:07:31]} 20.
Nb4 {[%clk 01:05:44]} {[%emt 00:00:25]} Ra4 {[%clk 01:17:51]} {[%emt 00:03:17]}
21. Nbc6 {[%clk 01:05:32]} {[%emt 00:00:42]} Rc7 {[%clk 01:17:21]} {[%emt
00:01:00]} 22. b3 {[%clk 01:04:18]} {[%emt 00:01:44]} Bc2 {[%clk 01:16:01]}
{[%emt 00:01:50]} 23. bxa4 {[%clk 00:56:05]} {[%emt 00:08:43]} Bxd1 {[%clk
01:16:23]} {[%emt 00:00:07]} 24. Nb4 {[%clk 00:56:30]} {[%emt 00:00:06]} f6
{[%clk 01:08:49]} {[%emt 00:08:04]} 25. Na6 {[%clk 00:53:55]} {[%emt 00:03:05]}
fxe5 {[%clk 01:06:47]} {[%emt 00:02:32]} 26. Nxc7 {[%clk 00:54:22]} {[%emt
00:00:03]} Nxc7 {[%clk 01:07:07]} {[%emt 00:00:10]} 27. a5 {[%clk 00:52:52]}
{[%emt 00:02:00]} exd4 {[%clk 01:05:36]} {[%emt 00:02:01]} 28. Bf4 {[%clk
00:53:19]} {[%emt 00:00:02]} Nb5 {[%clk 01:05:08]} {[%emt 00:00:58]} 29. e3
{[%clk 00:52:36]} {[%emt 00:01:14]} dxe3 {[%clk 01:02:10]} {[%emt 00:03:28]} 30.
Bxb5 {[%clk 00:52:36]} {[%emt 00:00:30]} e2 {[%clk 01:02:36]} {[%emt 00:00:04]}
31. Bd2 {[%clk 00:52:53]} {[%emt 00:00:13]} a6 {[%clk 01:01:42]} {[%emt
00:01:24]} 32. c6 {[%clk 00:52:58]} {[%emt 00:00:25]} axb5 {[%clk 01:01:58]}
{[%emt 00:00:13]} 33. c7 {[%clk 00:53:26]} {[%emt 00:00:03]} 1-0

[Event "NJSK 2026 Meisjes B"]
[Site "Helmond, Netherlands"]
[Date "2026.04.27"]
[Round "3.2"]
[White "Omnes, Zoe"]
[Black "Koorevaar, Sarah-Joy"]
[Result "0-1"]
[TimeControl "90min/40moves + 30min + 30sec/move"]
[WhiteTitle "-"]
[BlackTitle "-"]
[WhiteFideId "1095200"]
[BlackFideId "1091174"]
[WhiteElo "1485"]
[BlackElo "1768"]

1. e4 {[%clk 01:30:56]} {[%emt 00:00:04]} c5 {[%clk 01:30:56]} {[%emt
00:00:04]} 2. Nc3 {[%clk 01:31:19]} {[%emt 00:00:06]} e6 {[%clk 01:31:22]}
{[%emt 00:00:05]} 3. Nf3 {[%clk 01:31:29]} {[%emt 00:00:20]} Nc6 {[%clk
01:31:46]} {[%emt 00:00:06]} 4. d4 {[%clk 01:31:45]} {[%emt 00:00:13]} cxd4
{[%clk 01:32:11]} {[%emt 00:00:05]} 5. Nxd4 {[%clk 01:32:05]} {[%emt 00:00:10]}
Qc7 {[%clk 01:32:35]} {[%emt 00:00:07]} 6. Bc4 {[%emt 00:08:52]} a6 {[%clk
01:32:51]} {[%emt 00:00:11]} 7. Nxc6 {[%clk 01:23:26]} {[%emt 00:00:49]} dxc6
{[%clk 01:32:48]} {[%emt 00:00:33]} 8. Be2 {[%clk 01:11:27]} {[%emt 00:12:29]}
b5 {[%clk 01:31:39]} {[%emt 00:01:39]} 9. Bf3 {[%clk 01:09:43]} {[%emt
00:02:15]} Bb7 {[%clk 01:31:15]} {[%emt 00:00:55]} 10. g3 {[%clk 01:08:40]}
{[%emt 00:01:32]} Rd8 {[%clk 01:29:49]} {[%emt 00:01:55]} 11. Bd2 {[%clk
01:04:22]} {[%emt 00:04:47]} Nf6 {[%clk 01:25:15]} {[%emt 00:05:05]} 12. O-O
{[%clk 01:00:36]} {[%emt 00:04:17]} Bd6 {[%clk 01:15:55]} {[%emt 00:09:50]} 13.
Re1 {[%clk 00:55:32]} {[%emt 00:05:34]} h5 {[%clk 01:11:57]} {[%emt 00:04:28]}
14. Qe2 {[%clk 00:45:53]} {[%emt 00:10:09]} h4 {[%clk 01:08:35]} {[%emt
00:03:51]} 15. e5 {[%clk 00:45:51]} {[%emt 00:00:32]} Bxe5 {[%clk 01:08:57]}
{[%emt 00:00:08]} 16. Qxe5 {[%clk 00:45:59]} {[%emt 00:00:23]} Qxe5 {[%clk
01:09:25]} {[%emt 00:00:01]} 17. Rxe5 {[%clk 00:45:45]} {[%emt 00:00:45]} Rxd2
{[%clk 01:09:53]} {[%emt 00:00:02]} 18. Ne4 {[%clk 00:41:49]} {[%emt 00:04:25]}
Nxe4 {[%clk 01:07:56]} {[%emt 00:02:28]} 19. Bxe4 {[%clk 00:40:35]} {[%emt
00:01:44]} hxg3 {[%clk 01:07:53]} {[%emt 00:00:33]} 20. hxg3 {[%clk 00:40:42]}
{[%emt 00:00:22]} Re2 {[%clk 01:08:14]} {[%emt 00:00:10]} 21. Kf1 {[%clk
00:37:34]} {[%emt 00:03:38]} Rxe4 {[%clk 01:08:24]} {[%emt 00:00:21]} 22. Rxe4
{[%clk 00:35:10]} {[%emt 00:02:53]} Rh1+ {[%clk 01:08:45]} {[%emt 00:00:09]} 23.
Ke2 {[%clk 00:34:43]} {[%emt 00:00:57]} Rxa1 {[%clk 01:09:08]} {[%emt
00:00:07]} 24. a3 {[%clk 00:34:57]} {[%emt 00:00:16]} Ra2 {[%clk 01:09:04]}
{[%emt 00:00:34]} 25. Rh4 {[%clk 00:30:47]} {[%emt 00:04:40]} Rxb2 {[%clk
01:08:05]} {[%emt 00:01:30]} 26. Kd2 {[%clk 00:30:59]} {[%emt 00:00:17]} Ra2
{[%clk 01:07:55]} {[%emt 00:00:39]} 27. Rh8+ {[%clk 00:31:19]} {[%emt
00:00:10]} Kd7 {[%clk 01:08:20]} {[%emt 00:00:06]} 28. Rh7 {[%clk 00:31:34]}
{[%emt 00:00:15]} Rxa3 {[%clk 01:08:29]} {[%emt 00:00:22]} 29. Rxg7 {[%clk
00:31:50]} {[%emt 00:00:13]} Rf3 {[%clk 01:08:53]} {[%emt 00:00:06]} 30. Ke2
{[%clk 00:31:41]} {[%emt 00:00:38]} c5 {[%clk 01:09:14]} {[%emt 00:00:10]} 31.
g4 {[%clk 00:31:41]} {[%emt 00:00:30]} a5 {[%clk 01:05:45]} {[%emt 00:04:00]}
32. g5 {[%clk 00:32:01]} {[%emt 00:00:09]} a4 {[%clk 01:05:57]} {[%emt
00:00:18]} 33. g6 {[%clk 00:31:32]} {[%emt 00:01:00]} Ke7 {[%clk 01:05:31]}
{[%emt 00:00:55]} 34. Rh7 {[%clk 00:30:57]} {[%emt 00:01:03]} Rf6 {[%clk
01:05:41]} {[%emt 00:00:21]} 35. gxf7 {[%clk 00:26:20]} {[%emt 00:05:07]} Rxf7
{[%clk 01:06:01]} {[%emt 00:00:11]} 36. Rh8 {[%clk 00:26:39]} {[%emt 00:00:11]}
a3 {[%clk 01:06:08]} {[%emt 00:00:23]} 37. Rh1 {[%clk 00:24:43]} {[%emt
00:02:25]} Bxh1 {[%clk 01:06:35]} {[%emt 00:00:04]} 38. Kd1 {[%emt 00:00:19]}
0-1